[Event "20th Iraklio Open 2017"]
[Site "Athens"]
[Date "2017.06.19"]
[Round "3"]
[White "Koutourinis, Apostolos"]
[Black "Bardis, Harilaos-Panagiotis"]
[Result "1-0"]
[ECO "C50"]
[WhiteElo "2041"]
[BlackElo "1797"]
[Annotator "NA RC"]
[PlyCount "47"]
[EventDate "2017.??.??"]
[EventType "swiss"]
[EventCountry "GRE"]
[SourceTitle "playchess.com"]
[Source "ChessBase"]
[SourceQuality "1"]
[TimeControl "40/5400+30:1800+30"]

1. e4 {[%emt 0:03:30]} e5 {[%emt 0:01:00]} 2. Nf3 {[%emt 0:00:30]} Nc6 {[%emt 0:00:00]} 3. Bc4 {[%emt 0:01:30]} Bc5 {[%emt 0:00:00]} 4. O-O {[%emt 0:00:00]} Nf6 {[%emt 0:00:00]} 5. d4 {[%emt 0:03:00]} Bxd4 {[%emt 0:02:00]} 6. Nxd4 {[%emt 0:01:30]} Nxd4 {[%emt 0:00:30]} 7. Bg5 {[%emt 0:00:30]} d6 {[%emt 0:01:30]} 8. f4 {[%emt 0:00:30] C50: Hungarian Defence and Giuoco Pianissimo} Be6 {[%emt 0:03:30]} (8... Qe7 9. Na3 Ne6 10. Bxf6 gxf6 11. f5 Nc5 12. Qe2 a5 13. Qe3 c6 14. Rad1 b5 15. Be2 Bb7 {0-1 (53) Devereaux,M (2374)-Antonsen,M (2458) Copenhagen 2016}) 9. Na3 {[%emt 0:00:30]} Bxc4 {[%emt 0:10:30]} 10. Nxc4 {[%emt 0:00:30]} Ne6 {[%emt 0:00:00]} 11. fxe5 {[%emt 0:13:30]} Nxg5 {[%emt 0:00:00]} 12. exf6 {[%emt 0:00:30]} gxf6 {[%emt 0:00:30]} 13. Qd4 $146 {[%emt 0:01:30]} ({Predecessor:} 13. Qd5 O-O 14. h4 Ne6 15. Rf2 c6 16. Qxd6 Qxd6 17. Nxd6 {1-0 (54) Karaklajic,N-Bouwmeester,H Amsterdam 1965}) 13... Ne6 {[%emt 0:05:30]} 14. Qc3 {[%emt 0:06:30]} Rg8 {[%emt 0:01:30]} 15. Rxf6 {[%emt 0:26:30]} Qe7 {[%emt 0:05:30]} 16. Raf1 {[%emt 0:01:30]} Rg7 {[%emt 0:00:30]} 17. Ne3 {[%emt 0:01:30]} Rg6 {[%emt 0:03:30]} 18. Rxe6 {[%emt 0:15:30]} Rxe6 {[%emt 0:08:30]} 19. Nd5 {[%emt 0:00:30]} Qf8 {[%emt 0:00:30]} 20. Nxc7+ {[%emt 0:00:30]} Kd7 {[%emt 0:00:30]} 21. Nxa8 {[%emt 0:01:22]} Qxa8 {[%emt 0:00:30]} 22. Rxf7+ {[%emt 0:00:08]} Re7 {[%emt 0:00:30]} 23. Qh3+ {[%emt 0:02:15]} Ke8 {[%emt 0:00:30]} 24. Rxh7 $18 {[%emt 0:00:34]} 1-0

[Event "20th Iraklio Open 2017"]
[Site "Athens"]
[Date "2017.06.19"]
[Round "3"]
[White "Koerant, Filipos"]
[Black "Papadimitriou, Loukas"]
[Result "0-1"]
[ECO "E33"]
[WhiteElo "1872"]
[BlackElo "2059"]
[Annotator "NA RC"]
[PlyCount "82"]
[EventDate "2017.??.??"]
[EventType "swiss"]
[EventCountry "GRE"]
[SourceTitle "playchess.com"]
[Source "ChessBase"]
[SourceQuality "1"]
[TimeControl "40/5400+30:1800+30"]

1. d4 {[%emt 0:15:30]} Nf6 {[%emt 0:01:00]} 2. c4 {[%emt 0:00:30]} e6 {[%emt 0:02:30]} 3. Nc3 {[%emt 0:01:30]} Bb4 {[%emt 0:00:00]} 4. Qc2 {[%emt 0:00:00]} Nc6 {[%emt 0:02:00]} 5. Nf3 {[%emt 0:00:00]} d6 {[%emt 0:00:30]} 6. Bd2 {[%emt 0:00:30]} O-O {[%emt 0:00:30]} 7. a3 {[%emt 0:00:00]} Bxc3 {[%emt 0:00:30]} 8. Bxc3 {[%emt 0:00:00]} Qe7 {[%emt 0:00:30]} 9. e4 {[%emt 0:02:30] E33: Nimzo-Indian: Classical: 4...Nc6} (9. e3 a5 10. b3 e5 11. Be2 Bg4 12. O-O e4 13. Ne1 Bxe2 14. Qxe2 d5 15. Nc2 Qe6 16. c5 h5 17. b4 a4 {1-0 (48) Fridman,D (2639)-Kovalenko,I (2702) Liepaja 2015}) 9... e5 {[%emt 0:00:00]} 10. d5 {[%emt 0:00:00]} Nb8 {[%emt 0:04:00]} 11. Be2 {[%emt 0:02:00]} a5 {[%emt 0:06:30]} 12. b4 {[%emt 0:07:30]} b6 {[%emt 0:09:30]} 13. O-O {[%emt 0:00:30]} g6 $146 {[%emt 0:04:30]} ({Predecessor:} 13... Nbd7 14. Nd2 Bb7 {1-0 (45) Masse,H (2249)-Leclerc,H (1852) Quebec 2004}) 14. Nd2 {[%emt 0:01:30]} Nbd7 {[%emt 0:03:30]} 15. g3 {[%emt 0:03:30]} Nh5 {[%emt 0:05:30]} 16. Bxh5 {[%emt 0:00:30]} gxh5 {[%emt 0:00:00]} 17. f4 {[%emt 0:01:30]} h4 {[%emt 0:00:00]} 18. Nf3 {[%emt 0:01:30]} hxg3 {[%emt 0:00:30]} 19. fxe5 {[%emt 0:06:30]} Nxe5 {[%emt 0:00:30]} 20. Nxe5 {[%emt 0:02:30]} dxe5 {[%emt 0:00:30]} 21. Rf3 {[%emt 0:05:30]} Kh8 {[%emt 0:04:30]} 22. Rxg3 {[%emt 0:03:30]} Rg8 {[%emt 0:00:30]} 23. Rxg8+ {[%emt 0:01:30]} Kxg8 {[%emt 0:00:30]} 24. Qg2+ {[%emt 0:07:30]} Kh8 {[%emt 0:00:30]} 25. Rf1 {[%emt 0:01:30]} f6 {[%emt 0:00:30]} 26. Qf3 {[%emt 0:03:30]} axb4 {[%emt 0:04:30]} 27. Bxb4 {[%emt 0:01:30]} Qg7+ {[%emt 0:00:30]} 28. Kh1 {[%emt 0:01:30]} Ba6 {[%emt 0:02:30]} 29. Rg1 {[%emt 0:01:30]} Qf7 $1 {[%emt 0:00:30]} 30. Bc3 {[%emt 0:02:30]} Rg8 {[%emt 0:02:30]} 31. Rf1 {[%emt 0:11:41]} (31. Bxe5 $1 $14 Rxg1+ 32. Kxg1) 31... Rg5 {[%emt 0:02:30]} 32. Qxf6+ {[%emt 0:03:58]} Qxf6 {[%emt 0:00:30]} 33. Rxf6 {[%emt 0:00:12]} Bxc4 {[%emt 0:00:00]} 34. Re6 {[%emt 0:01:36]} Kg8 {[%emt 0:05:00]} 35. Bxe5 {[%emt 0:04:46]} c5 {[%emt 0:03:30] [#]} (35... b5 $11 {keeps the balance.}) 36. Bg3 {[%emt 0:02:17]} ({White should play} 36. Re7 $1 $16) 36... Rxd5 $1 {[%emt 0:00:30]} 37. Rxb6 {[%emt 0:01:07]} Rd2 {[%emt 0:03:30]} 38. Rf6 {[%emt 0:02:38]} Bd3 {[%emt 0:00:30]} 39. e5 {[%emt 0:00:35]} c4 {[%emt 0:00:30]} 40. Rf2 $2 {[%emt 0:02:14]} (40. Bf4 $11 Rf2 41. Kg1 Rf1+ 42. Kg2) 40... c3 {[%emt 0:30:30]} 41. e6 {[%emt 0:30:53] [#]} c2 {[%emt 0:00:30]} 0-1

[Event "20th Iraklio Open 2017"]
[Site "Athens"]
[Date "2017.06.20"]
[Round "4.4"]
[White "Korniotis, Filippos"]
[Black "Kotrotsos, Vasilios"]
[Result "1-0"]
[ECO "B06"]
[WhiteElo "2143"]
[BlackElo "2269"]
[Annotator "ChessBase"]
[PlyCount "97"]
[EventDate "2017.??.??"]
[EventType "swiss"]
[EventCountry "GRE"]
[SourceTitle "playchess.com"]
[Source "ChessBase"]
[SourceQuality "1"]
[TimeControl "40/5400+30:1800+30"]

1. d4 {[%emt 0:02:30]} g6 {[%emt 0:01:00]} 2. e4 {[%emt 0:01:30]} Bg7 {[%emt 0:00:00]} 3. Nc3 {[%emt 0:00:30]} d6 {[%emt 0:00:00]} 4. Be3 {[%emt 0:00:30]} a6 {[%emt 0:00:00]} 5. h4 {[%emt 0:00:30]} h5 {[%emt 0:00:00]} 6. Qd2 {[%emt 0:00:30]} b5 {[%emt 0:00:30]} 7. Nh3 {[%emt 0:00:30]} Nd7 {[%emt 0:00:30]} 8. Be2 {[%emt 0:02:30]} Bb7 {[%emt 0:02:30]} 9. f3 {[%emt 0:02:30]} c5 {[%emt 0:06:30]} 10. a4 {[%emt 0:02:30]} b4 {[%emt 0:01:30]} 11. Na2 {[%emt 0:00:30]} Qa5 {[%emt 0:02:30]} 12. Nc1 {[%emt 0:03:30]} Ngf6 {[%emt 0:05:30]} 13. O-O {[%emt 0:03:30]} cxd4 {[%emt 0:06:30]} 14. Bxd4 {[%emt 0:00:30]} e5 {[%emt 0:02:30]} 15. Be3 {[%emt 0:05:30]} d5 {[%emt 0:00:30]} 16. Nb3 {[%emt 0:25:30]} Qc7 {[%emt 0:00:30]} 17. Qxb4 {[%emt 0:01:30]} a5 {[%emt 0:01:30]} 18. Qa3 {[%emt 0:00:30]} Bf8 {[%emt 0:09:30]} 19. Qa2 {[%emt 0:00:00]} Bd6 {[%emt 0:00:30]} 20. Ng5 {[%emt 0:07:00]} O-O {[%emt 0:00:30]} 21. Bd3 {[%emt 0:06:30]} dxe4 {[%emt 0:10:30]} 22. fxe4 {[%emt 0:00:30]} Ng4 {[%emt 0:00:30]} 23. Rxf7 {[%emt 0:08:30]} Rxf7 {[%emt 0:01:30]} 24. Nd4 {[%emt 0:02:30]} Raf8 {[%emt 0:14:30]} 25. Nde6 {[%emt 0:01:30]} Nxe3 {[%emt 0:10:30]} 26. Nxc7 {[%emt 0:00:30]} Bxc7 {[%emt 0:00:00]} 27. Nxf7 {[%emt 0:07:35]} Rxf7 {[%emt 0:00:00]} 28. b4 {[%emt 0:04:26]} Bb6 {[%emt 0:06:58]} 29. bxa5 {[%emt 0:00:30]} Bc5 {[%emt 0:02:47]} 30. Kh1 {[%emt 0:03:20]} Nf6 {[%emt 0:04:08]} 31. Qe6 {[%emt 0:02:02]} Nxe4 {[%emt 0:08:54]} 32. Qxg6+ {[%emt 0:03:04]} Rg7 {[%emt 0:00:05]} 33. Qe6+ {[%emt 0:01:46]} Kf8 {[%emt 0:03:01]} 34. Bxe4 {[%emt 0:00:08]} Bxe4 {[%emt 0:00:00]} 35. Qc8+ {[%emt 0:00:15]} Kf7 {[%emt 0:00:00]} 36. Qxc5 {[%emt 0:00:36]} Rxg2 {[%emt 0:00:38]} 37. Qxe3 {[%emt 0:01:04]} Re2+ {[%emt 0:00:05]} 38. Qxe4 {[%emt 0:00:01]} Rxe4 {[%emt 0:00:01]} 39. a6 {[%emt 0:00:29]} Rxh4+ {[%emt 0:00:08]} 40. Kg2 {[%emt 0:00:01]} Rc4 {[%emt 0:30:11]} 41. Ra2 {[%emt 0:31:17]} Rc6 {[%emt 0:00:13]} 42. Kf3 {[%emt 0:00:06]} Rxa6 {[%emt 0:00:28]} 43. a5 {[%emt 0:00:04]} Ke6 {[%emt 0:00:31]} 44. Ke4 {[%emt 0:00:03]} h4 {[%emt 0:00:14]} 45. c4 {[%emt 0:00:14]} h3 {[%emt 0:00:44]} 46. c5 {[%emt 0:00:26]} h2 {[%emt 0:03:00]} 47. Rxh2 {[%emt 0:00:07]} Rxa5 {[%emt 0:00:04]} 48. Rh6+ {[%emt 0:00:01]} Kd7 {[%emt 0:00:08]} 49. Kd5 {[%emt 0:04:27]} 1-0

[Event "20th Iraklio Open 2017"]
[Site "Athens"]
[Date "2017.06.20"]
[Round "4.7"]
[White "Margaritis, Fotios"]
[Black "Galanos, Dimitrios"]
[Result "0-1"]
[ECO "B27"]
[WhiteElo "2179"]
[BlackElo "1996"]
[Annotator "ChessBase"]
[PlyCount "53"]
[EventDate "2017.??.??"]
[EventType "swiss"]
[EventCountry "GRE"]
[SourceTitle "playchess.com"]
[Source "ChessBase"]
[SourceQuality "1"]
[TimeControl "40/5400+30:1800+30"]

1. e4 {[%emt 0:16:30]} c5 {[%emt 0:09:00]} 2. Nf3 {[%emt 0:01:30]} g6 {[%emt 0:03:30]} 3. c3 {[%emt 0:03:30]} Bg7 {[%emt 0:00:30]} 4. d4 {[%emt 0:00:30]} cxd4 {[%emt 0:00:30]} 5. cxd4 {[%emt 0:00:00]} d5 {[%emt 0:00:00]} 6. e5 {[%emt 0:00:00]} Nh6 {[%emt 0:00:00]} 7. h3 {[%emt 0:00:30]} Nc6 {[%emt 0:00:30]} 8. Nc3 {[%emt 0:00:30]} O-O {[%emt 0:01:30]} 9. Qb3 {[%emt 0:04:30]} Nf5 {[%emt 0:00:30]} 10. Be3 {[%emt 0:02:30]} Be6 {[%emt 0:09:30]} 11. Qxb7 {[%emt 0:12:30]} Bd7 {[%emt 0:01:30]} 12. Qb3 {[%emt 0:08:30]} Rb8 {[%emt 0:01:30]} 13. Qa3 {[%emt 0:09:30]} Nb4 {[%emt 0:04:30]} 14. Rc1 {[%emt 0:00:30]} Nxe3 {[%emt 0:02:30]} 15. fxe3 {[%emt 0:03:30]} Bh6 {[%emt 0:00:30]} 16. Kf2 {[%emt 0:07:30]} a5 {[%emt 0:00:30]} 17. Be2 {[%emt 0:08:32]} f6 {[%emt 0:04:30]} 18. exf6 {[%emt 0:00:52]} Rxf6 {[%emt 0:05:30]} 19. Rhe1 {[%emt 0:01:43]} Bf5 {[%emt 0:00:30]} 20. Qa4 {[%emt 0:00:57]} Qd6 {[%emt 0:08:30]} 21. Qxa5 {[%emt 0:06:59]} Qe6 {[%emt 0:19:30]} 22. Bf1 {[%emt 0:03:06]} Be4 {[%emt 0:12:20]} 23. Nxe4 {[%emt 0:03:04]} Qxe4 {[%emt 0:00:06]} 24. a3 {[%emt 0:01:13]} Rbf8 {[%emt 0:03:38]} 25. Kg1 {[%emt 0:03:25]} Bxe3+ {[%emt 0:01:04]} 26. Kh1 {[%emt 0:00:20]} Rxf3 {[%emt 0:00:34]} 27. Ra1 0-1

[Event "20th Iraklio Open 2017"]
[Site "Athens"]
[Date "2017.06.20"]
[Round "4.8"]
[White "Ergazakis, Ioannis"]
[Black "Nemtsas, Hristoforos"]
[Result "1-0"]
[ECO "B92"]
[WhiteElo "2150"]
[BlackElo "1931"]
[Annotator "ChessBase"]
[PlyCount "43"]
[EventDate "2017.??.??"]
[EventType "swiss"]
[EventCountry "GRE"]
[SourceTitle "playchess.com"]
[Source "ChessBase"]
[SourceQuality "1"]
[TimeControl "40/5400+30:1800+30"]

1. e4 {[%emt 0:00:30]} c5 {[%emt 0:01:00]} 2. Nf3 {[%emt 0:00:00]} d6 {[%emt 0:00:00]} 3. d4 {[%emt 0:00:00]} Nf6 {[%emt 0:00:00]} 4. Nc3 {[%emt 0:00:00]} cxd4 {[%emt 0:00:00]} 5. Nxd4 {[%emt 0:00:00]} a6 {[%emt 0:00:00]} 6. Be2 {[%emt 0:00:30]} e5 {[%emt 0:00:00]} 7. Nb3 {[%emt 0:00:30]} Be7 {[%emt 0:00:00]} 8. Be3 {[%emt 0:00:00]} Be6 {[%emt 0:00:30]} 9. O-O {[%emt 0:00:00]} O-O {[%emt 0:01:30]} 10. Qd3 {[%emt 0:01:30]} Nbd7 {[%emt 0:01:30]} 11. Nd5 {[%emt 0:00:30]} Bxd5 {[%emt 0:00:00]} 12. exd5 {[%emt 0:00:30]} Nc5 {[%emt 0:00:00]} 13. Nxc5 {[%emt 0:00:00]} dxc5 {[%emt 0:00:30]} 14. Bf3 {[%emt 0:07:00]} Qd7 {[%emt 0:07:30]} 15. c4 {[%emt 0:21:30]} Rae8 {[%emt 0:06:30]} 16. Rfe1 {[%emt 0:04:30]} Bd6 {[%emt 0:05:30]} 17. Qd2 {[%emt 0:11:30]} e4 {[%emt 0:13:30]} 18. Be2 {[%emt 0:05:30]} Qf5 {[%emt 0:12:30]} 19. Rad1 {[%emt 0:06:30]} Ng4 {[%emt 0:17:30]} 20. b4 {[%emt 0:03:30]} b6 {[%emt 0:12:30]} 21. bxc5 {[%emt 0:02:30]} bxc5 {[%emt 0:00:00]} 22. Qa5 1-0

[Event "20th Iraklio Open 2017"]
[Site "Athens"]
[Date "2017.06.20"]
[Round "4.10"]
[White "Hrysogelou, Athanasia-Panagiota"]
[Black "Tsiros, Fragkiskos Vlasios"]
[Result "0-1"]
[ECO "E61"]
[WhiteElo "1878"]
[BlackElo "2163"]
[Annotator "ChessBase"]
[PlyCount "82"]
[EventDate "2017.??.??"]
[EventType "swiss"]
[EventCountry "GRE"]
[SourceTitle "playchess.com"]
[Source "ChessBase"]
[SourceQuality "1"]
[TimeControl "40/5400+30:1800+30"]

1. d4 {[%emt 0:00:30]} Nf6 {[%emt 0:02:00]} 2. c4 {[%emt 0:00:00]} d6 {[%emt 0:00:30]} 3. Nc3 {[%emt 0:01:00]} Bf5 {[%emt 0:00:30]} 4. Nf3 {[%emt 0:03:30]} g6 {[%emt 0:01:30]} 5. e3 {[%emt 0:03:30]} Bg7 {[%emt 0:02:30]} 6. Be2 {[%emt 0:03:30]} O-O {[%emt 0:00:30]} 7. O-O {[%emt 0:00:00]} c6 {[%emt 0:04:30]} 8. Re1 {[%emt 0:05:00]} Na6 {[%emt 0:09:30]} 9. Bf1 {[%emt 0:09:30]} Ne4 {[%emt 0:07:30]} 10. Nxe4 {[%emt 0:06:30]} Bxe4 {[%emt 0:00:30]} 11. Ng5 {[%emt 0:05:30]} Bf5 {[%emt 0:00:00]} 12. e4 {[%emt 0:00:30]} Bd7 {[%emt 0:05:00]} 13. Be3 {[%emt 0:07:30]} c5 {[%emt 0:11:30]} 14. Nf3 {[%emt 0:05:30]} Bg4 {[%emt 0:06:30]} 15. Be2 {[%emt 0:08:30]} Qb6 {[%emt 0:04:30]} 16. e5 {[%emt 0:10:30]} dxe5 {[%emt 0:11:30]} 17. dxc5 {[%emt 0:02:30]} Qc7 {[%emt 0:03:30]} 18. Nd2 {[%emt 0:08:48]} Bf5 {[%emt 0:04:30]} 19. Nb3 {[%emt 0:02:35]} Nb4 {[%emt 0:00:30]} 20. Bg4 {[%emt 0:06:00]} Bxg4 {[%emt 0:01:30]} 21. Qxg4 {[%emt 0:00:03]} Nc2 {[%emt 0:00:30]} 22. Rad1 {[%emt 0:00:56]} Nxe1 {[%emt 0:00:00]} 23. Rxe1 {[%emt 0:00:06]} f5 {[%emt 0:00:00]} 24. Qf3 {[%emt 0:03:04]} e4 {[%emt 0:01:30]} 25. Qe2 {[%emt 0:00:11]} e5 {[%emt 0:00:30]} 26. Bd2 {[%emt 0:01:48]} a5 {[%emt 0:06:24]} 27. a4 {[%emt 0:03:47]} b6 {[%emt 0:00:39]} 28. Qe3 {[%emt 0:00:24]} bxc5 {[%emt 0:00:29]} 29. Qxc5 {[%emt 0:02:17]} Qxc5 {[%emt 0:00:19]} 30. Nxc5 {[%emt 0:00:04]} Rfc8 {[%emt 0:00:06]} 31. Nb3 {[%emt 0:00:47]} Rxc4 {[%emt 0:00:21]} 32. Nxa5 {[%emt 0:00:29]} Rc2 {[%emt 0:03:26]} 33. Bb4 {[%emt 0:00:22]} Rxb2 {[%emt 0:00:08]} 34. Bc3 {[%emt 0:00:37]} Rc2 {[%emt 0:01:36]} 35. Bb4 {[%emt 0:00:27]} Bf8 {[%emt 0:00:37]} 36. Bxf8 {[%emt 0:00:09]} Kxf8 {[%emt 0:00:06]} 37. Nb3 {[%emt 0:00:50]} Rxa4 {[%emt 0:00:17]} 38. g3 {[%emt 0:00:53]} Rb4 {[%emt 0:00:36]} 39. Na1 {[%emt 0:00:22]} Ra2 {[%emt 0:00:48]} 40. Rc1 {[%emt 0:00:23]} Rbb2 {[%emt 0:30:04]} 41. Rf1 {[%emt 0:30:01]} e3 0-1

[Event "20th Iraklio Open 2017"]
[Site "Athens"]
[Date "2017.06.21"]
[Round "5.9"]
[White "Hrisanthopoulos, Dimitrios"]
[Black "Abelakiotis, Stavros"]
[Result "0-1"]
[ECO "B48"]
[WhiteElo "2023"]
[BlackElo "1861"]
[Annotator "NA RC"]
[PlyCount "60"]
[EventDate "2017.??.??"]
[EventType "swiss"]
[EventCountry "GRE"]
[SourceTitle "playchess.com"]
[Source "ChessBase"]
[SourceQuality "1"]
[TimeControl "5400+30"]

{[%evp 23,60,-4,46,32767,17,11,51,0,18,27,22,0,10,0,2,-64,-51,-43,-24,-35,-49,-47,-39,-48,32767,-75,-48,-71,-29,-70,-57,-62,-67,-82,-87,-81,-68,-72,-120]} 1. e4 {[%emt 0:00:30]} c5 {[%emt 0:01:00]} 2. Nf3 {[%emt 0:00:30]} e6 {[%emt 0:00:30]} 3. d4 {[%emt 0:00:00]} cxd4 {[%emt 0:00:30]} 4. Nxd4 {[%emt 0:00:00]} Nc6 {[%emt 0:00:30]} 5. Nc3 {[%emt 0:00:30]} Qc7 {[%emt 0:00:30]} 6. Be3 {[%emt 0:00:00]} a6 {[%emt 0:00:30]} 7. Be2 {[%emt 0:01:00]} Nf6 {[%emt 0:00:30]} 8. a3 {[%emt 0:00:30]} b5 {[%emt 0:00:30]} 9. Nxc6 {[%emt 0:00:30]} dxc6 {[%emt 0:00:00]} 10. f4 {[%emt 0:01:30] B48: Sicilian: Taimanov: 5 Nc3 Qc7 6 Be3 a6 without Be2} Bb7 {[%emt 0:00:30]} 11. Bf3 {[%emt 0:00:30]} (11. e5 Nd7 12. Bf3 Rd8 13. Qe2 Be7 14. Ne4 O-O 15. O-O c5 16. a4 b4 17. Nd2 Nb6 18. Bxb7 Qxb7 {½-½ (32) Zhigalko,A (2591)-Neiksans,A (2628) Baku 2016}) 11... e5 {[%emt 0:01:30]} 12. f5 {[%emt 0:09:30]} Rd8 {[%emt 0:07:30]} 13. Qe2 {[%emt 0:00:30]} c5 $146 {[%emt 0:16:30]} ({Predecessor:} 13... Be7 14. g4 Nd7 15. Qf2 Qa5 16. O-O h6 17. Rad1 Qc7 {0-1 (51) Marcic,I (2033)-Plenkovic,Z (2380) Omis 2006}) 14. O-O {[%emt 0:02:30]} c4 {[%emt 0:01:30]} 15. Rad1 {[%emt 0:05:30]} Rxd1 {[%emt 0:01:30]} 16. Rxd1 {[%emt 0:00:30]} Bc5 {[%emt 0:00:30]} 17. Qf2 {[%emt 0:03:30]} Bxe3 {[%emt 0:02:30]} 18. Qxe3 {[%emt 0:05:30]} O-O {[%emt 0:04:30]} 19. Nd5 {[%emt 0:17:30]} (19. Qd2 $11) 19... Bxd5 $1 {[%emt 0:31:30]} 20. exd5 {[%emt 0:00:30]} e4 {[%emt 0:03:30]} 21. d6 {[%emt 0:04:30]} Qc6 {[%emt 0:06:30]} 22. Be2 {[%emt 0:03:30]} Rd8 {[%emt 0:03:45]} 23. g4 {[%emt 0:22:30]} h6 {[%emt 0:05:15]} 24. Qf4 {[%emt 0:09:20]} c3 {[%emt 0:08:46]} 25. b4 {[%emt 0:01:38]} Ne8 {[%emt 0:00:55]} 26. Qe5 {[%emt 0:04:38]} Rxd6 {[%emt 0:01:43]} 27. Rxd6 {[%emt 0:00:46]} Nxd6 {[%emt 0:00:11]} 28. Qc5 {[%emt 0:00:16]} Qxc5+ {[%emt 0:04:29]} 29. bxc5 {[%emt 0:00:03] [#]} Nb7 $1 {[%emt 0:00:31]} 30. c6 {[%emt 0:00:26]} Nd6 $17 {[%emt 0:00:32]} 0-1

[Event "20th Iraklio Open 2017"]
[Site "Athens"]
[Date "2017.06.22"]
[Round "6.2"]
[White "Ergazakis, Ioannis"]
[Black "Korniotis, Filippos"]
[Result "*"]
[ECO "C06"]
[WhiteElo "2150"]
[BlackElo "2143"]
[Annotator "NA"]
[PlyCount "22"]
[EventDate "2017.??.??"]
[EventType "swiss"]
[EventCountry "GRE"]
[SourceTitle "playchess.com"]
[Source "ChessBase"]
[SourceQuality "1"]
[TimeControl "5400+30"]

{[%evp 13,21,29,48,45,62,30,58,19,58,0]} 1. e4 {[%emt 0:00:30]} e6 {[%emt 0:01:00]} 2. d4 {[%emt 0:00:30]} d5 {[%emt 0:00:00]} 3. Nd2 {[%emt 0:00:30]} Nf6 {[%emt 0:01:00]} 4. e5 {[%emt 0:00:30]} Nfd7 {[%emt 0:00:00]} 5. Bd3 {[%emt 0:00:30]} c5 {[%emt 0:00:00]} 6. c3 {[%emt 0:00:30]} Nc6 {[%emt 0:00:30]} 7. Ne2 {[%emt 0:03:30]} Qb6 {[%emt 0:07:30]} 8. Nf3 {[%emt 0:02:30]} cxd4 {[%emt 0:00:30]} 9. cxd4 {[%emt 0:00:30]} Bb4+ {[%emt 0:00:30]} 10. Kf1 {[%emt 0:01:30]} Be7 {[%emt 0:01:30] LiveBook: 9 Games} 11. h4 $11 {[%emt 0:04:30]} f5 {[%emt 0:21:30]} *

[Event "20th Iraklio Open 2017"]
[Site "Athens"]
[Date "2017.06.22"]
[Round "6.2"]
[White "Loutragotis, Dimitrios"]
[Black "Korniotis, Filippos"]
[Result "1-0"]
[ECO "C06"]
[WhiteElo "2143"]
[BlackElo "2143"]
[Annotator "NA"]
[PlyCount "67"]
[EventDate "2017.??.??"]
[EventType "swiss"]
[EventCountry "GRE"]
[SourceTitle "playchess.com"]
[Source "ChessBase"]
[SourceQuality "1"]
[TimeControl "5400+30"]

1. e4 {[%emt 0:00:30]} e6 {[%emt 0:01:00]} 2. d4 {[%emt 0:00:30]} d5 {[%emt 0:00:00]} 3. Nd2 {[%emt 0:00:30]} Nf6 {[%emt 0:01:00]} 4. e5 {[%emt 0:00:30]} Nfd7 {[%emt 0:00:00]} 5. Bd3 {[%emt 0:00:30]} c5 {[%emt 0:00:00]} 6. c3 {[%emt 0:00:30]} Nc6 {[%emt 0:00:30]} 7. Ne2 {[%emt 0:03:30]} Qb6 {[%emt 0:07:30]} 8. Nf3 {[%emt 0:02:30]} cxd4 {[%emt 0:00:30]} 9. cxd4 {[%emt 0:00:30]} Bb4+ {[%emt 0:00:30]} 10. Kf1 {[%emt 0:00:30]} Be7 {[%emt 0:01:30]} 11. h4 {[%emt 0:04:30] C06: French Tarrasch: 3...Nf6 4 e5 Nfd7 5 Bd3 main lines} (11. g3 g5 12. Nxg5 Bxg5 13. Bxg5 Qxb2 14. Kg2 b6 15. Qa4 {1-0 (15) Leon Hoyos,M (2527)-Vuelban,V (2422) Perugia 2009}) 11... f5 {[%emt 0:21:30]} 12. Rh3 {[%emt 0:20:30]} Nf8 {[%emt 0:04:30]} 13. Rg3 $146 {[%emt 0:00:30]} ({Predecessor:} 13. Nc3 Bd7 14. Na4 Qa5 15. b3 Nb4 16. Bd2 {1-0 (44) Jurkovic,A (2320)-Berra,D Robecchetto 1997}) 13... g6 {[%emt 0:01:30]} 14. h5 {[%emt 0:01:30]} Bd7 {[%emt 0:01:30]} 15. a3 {[%emt 0:06:30]} O-O-O {[%emt 0:07:30]} 16. Bg5 {[%emt 0:02:30]} (16. h6 $18) 16... Kb8 {[%emt 0:00:30]} (16... Bxg5 $1 $14 17. Nxg5 Be8) 17. b4 {[%emt 0:03:30]} Bxg5 {[%emt 0:01:30]} 18. Nxg5 {[%emt 0:00:00]} Be8 {[%emt 0:01:30]} 19. hxg6 {[%emt 0:05:00]} hxg6 {[%emt 0:01:30]} 20. Kg1 {[%emt 0:01:30]} Nxd4 {[%emt 0:05:30]} 21. Nf4 {[%emt 0:11:30]} ({White should try} 21. Nxd4 $15 Qxd4 22. Nf3) 21... Rh4 {[%emt 0:02:30]} 22. Ngh3 {[%emt 0:00:30]} (22. Nfh3 $17) 22... Nc6 {[%emt 0:00:30]} 23. Rc1 {[%emt 0:03:30]} Nxe5 {[%emt 0:01:30]} 24. Bf1 {[%emt 0:03:30]} Ng4 {[%emt 0:02:30]} 25. Rgc3 {[%emt 0:00:30] [#]} g5 $1 {[%emt 0:14:30]} 26. Qc2 {[%emt 0:00:30] [#]} Bd7 $1 {[%emt 0:01:30]} 27. Nd3 {[%emt 0:09:12]} Qd6 $15 {[%emt 0:09:26]} ({Black should try} 27... d4 $17 28. Rc7 Qd6) 28. g3 {[%emt 0:02:45]} Ne3 {[%emt 0:00:42]} 29. fxe3 {[%emt 0:00:47]} Qxg3+ {[%emt 0:00:04]} 30. Bg2 {[%emt 0:00:55]} Rxh3 {[%emt 0:00:31]} 31. Nc5 {[%emt 0:01:54]} Rh8 {[%emt 0:01:06]} 32. Nxb7 {[%emt 0:01:42]} Kxb7 {[%emt 0:01:21]} 33. Rc7+ {[%emt 0:00:05]} Kb8 {[%emt 0:00:01]} 34. Qc5 {[%emt 0:00:10]} 1-0